Department family,Entity,Date,Expense Type,Expense area,Supplier,Transaction number,AP Amount (�),,
Department of Health,NHS Barnsley CCG,30/04/2015,Hcare Srv Rec Fdtn Trust-Contract Baseline,ACUTE COMMISSIONING,BARNSLEY HOSPITAL NHS FOUNDATION TRUST, ,"9,819,090.00",,
Department of Health,NHS Barnsley CCG,30/04/2015,Hcare Srv Rec Fdtn Trust-CQUIN,ACUTE COMMISSIONING,BARNSLEY HOSPITAL NHS FOUNDATION TRUST,7657880,"117,560.00",,
Department of Health,NHS Barnsley CCG,30/04/2015,Cont Care- Children,CHC CHILDREN,BARNSLEY METROPOLITAN BOROUGH COUNCIL,7424797,"185,863.00",,
Department of Health,NHS Barnsley CCG,30/04/2015,Cont Care- Children,CHC CHILDREN,BARNSLEY METROPOLITAN BOROUGH COUNCIL,7511609,"(77,305.00)",,
Department of Health,NHS Barnsley CCG,30/04/2015,Cont Care- Children,CHC CHILDREN,BARNSLEY METROPOLITAN BOROUGH COUNCIL,7652265,"380,949.00",,
Department of Health,NHS Barnsley CCG,30/04/2015,Clinical&Medical-Commercial Sector,ACUTE COMMISSIONING,BMI HEALTHCARE COLLECTIONS,7575765,"30,906.82",,
Department of Health,NHS Barnsley CCG,30/04/2015,Clinical&Medical-Commercial Sector,ACUTE COMMISSIONING,BMI HEALTHCARE COLLECTIONS,7576065,"42,853.17",,
Department of Health,NHS Barnsley CCG,30/04/2015,Hcare Srv Rec Fdtn Trust-Contract Baseline,ACUTE COMMISSIONING,DONCASTER AND BASSETLAW HOSPITALS NHS FOUNDATION TRUST,7408828,"(136,482.00)",,
Department of Health,NHS Barnsley CCG,30/04/2015,Hcare Srv Rec Fdtn Trust-Contract Baseline,ACUTE COMMISSIONING,DONCASTER AND BASSETLAW HOSPITALS NHS FOUNDATION TRUST,7490611,"(112,096.00)",,
Department of Health,NHS Barnsley CCG,30/04/2015,Hcare Srv Rec Fdtn Trust-Contract Baseline,ACUTE COMMISSIONING,DONCASTER AND BASSETLAW HOSPITALS NHS FOUNDATION TRUST,7652325,"25,421.00",,
Department of Health,NHS Barnsley CCG,30/04/2015,C&M-PMS Cost of Drugs -Dispensing,LOCAL ENHANCED SERVICES,BARNSLEY GP SURGERY,7696780,"(74,998.81)",,
Department of Health,NHS Barnsley CCG,30/04/2015,C&M-PMS Cost of Drugs -Dispensing,LOCAL ENHANCED SERVICES,BARNSLEY GP SURGERY,7696782,"154,058.49",,
Department of Health,NHS Barnsley CCG,30/04/2015,C&M-PMS Prsc Chrgs Cll&Rmttd by GPs,LOCAL ENHANCED SERVICES,BARNSLEY GP SURGERY,7696782,"4,427.50",,
Department of Health,NHS Barnsley CCG,30/04/2015,C&M-PMS Cost of Drugs -Dispensing,LOCAL ENHANCED SERVICES,BARNSLEY GP SURGERY,7696786,"27,682.08",,
Department of Health,NHS Barnsley CCG,30/04/2015,C&M-PMS Prsc Chrgs Cll&Rmttd by GPs,LOCAL ENHANCED SERVICES,BARNSLEY GP SURGERY,7696786,"1,312.15",,
Department of Health,NHS Barnsley CCG,31/03/2015,Hcare Srv Rec NHS Trust-CQUIN,ACUTE COMMISSIONING,MID YORKSHIRE HOSPITALS NHS TRUST,7243435,"1,783.78", , 
Department of Health,NHS Barnsley CCG,31/03/2015,Hcare Srv Rec NHS Trust-Contract Baseline,ACUTE COMMISSIONING,MID YORKSHIRE HOSPITALS NHS TRUST,7243435,"162,635.22", , 
Department of Health,NHS Barnsley CCG,30/04/2015,Clinical&Medical-Commercial Sector,ACUTE COMMISSIONING,ONEHEALTH GROUP,7575723,"107,399.60",,
Department of Health,NHS Barnsley CCG,30/04/2015,Hcare Srv Rec Fdtn Trust-Contract Baseline,ACUTE COMMISSIONING,SHEFFIELD CHILDRENS NHS FOUNDATION TRUST,7546747,"(144,397.21)",,
Department of Health,NHS Barnsley CCG,30/04/2015,Hcare Srv Rec Fdtn Trust-Contract Baseline,ACUTE COMMISSIONING,SHEFFIELD CHILDRENS NHS FOUNDATION TRUST,7576783,"176,154.20",,
Department of Health,NHS Barnsley CCG,30/04/2015,Hcare Srv Rec Fdtn Trust-CQUIN,ACUTE COMMISSIONING,SHEFFIELD CHILDRENS NHS FOUNDATION TRUST,7576783,"2,229.80",,
Department of Health,NHS Barnsley CCG,30/04/2015,Hcare Srv Rec Fdtn Trust-CQUIN,ACUTE COMMISSIONING,SHEFFIELD TEACHING HOSPITALS NHS FOUNDATION TRUST,7575823,"20,410.00",,
Department of Health,NHS Barnsley CCG,30/04/2015,Hcare Srv Rec Fdtn Trust-Contract Baseline,ACUTE COMMISSIONING,SHEFFIELD TEACHING HOSPITALS NHS FOUNDATION TRUST,7575823,"1,979,590.00",,
Department of Health,NHS Barnsley CCG,30/04/2015,Hcare Srv Rec Fdtn Trust-CQUIN,ACUTE COMMISSIONING,SHEFFIELD TEACHING HOSPITALS NHS FOUNDATION TRUST,7575987,"3,376.00",,
Department of Health,NHS Barnsley CCG,30/04/2015,Hcare Srv Rec Fdtn Trust-Contract Baseline,ACUTE COMMISSIONING,SHEFFIELD TEACHING HOSPITALS NHS FOUNDATION TRUST,7575987,"135,028.00",,
Department of Health,NHS Barnsley CCG,30/04/2015,Hcare Srv Rec Fdtn Trust-CQUIN,ACUTE COMMISSIONING,SHEFFIELD TEACHING HOSPITALS NHS FOUNDATION TRUST,7576016,463.00,,
Department of Health,NHS Barnsley CCG,30/04/2015,Hcare Srv Rec Fdtn Trust-Contract Baseline,ACUTE COMMISSIONING,SHEFFIELD TEACHING HOSPITALS NHS FOUNDATION TRUST,7576016,"71,333.00",,
Department of Health,NHS Barnsley CCG,30/04/2015,Hcare Srv Rec Fdtn Trust-CQUIN,ACUTE COMMISSIONING,SHEFFIELD TEACHING HOSPITALS NHS FOUNDATION TRUST,7678465,"(91,795.00)",,
Department of Health,NHS Barnsley CCG,30/04/2015,Hcare Srv Rec Fdtn Trust-Contract Baseline,ACUTE COMMISSIONING,SHEFFIELD TEACHING HOSPITALS NHS FOUNDATION TRUST,7678465,"(192,644.00)",,
Department of Health,NHS Barnsley CCG,30/04/2015,Hcare Srv Rec Fdtn Trust-CQUIN,COMMUNITY SERVICES,SOUTH WEST YORKSHIRE PARTNERSHIP NHS FOUNDATION TRUST,7519954,"65,969.15",,
Department of Health,NHS Barnsley CCG,30/04/2015,Hcare Srv Rec Fdtn Trust-CQUIN,LEARNING DIFFICULTIES,SOUTH WEST YORKSHIRE PARTNERSHIP NHS FOUNDATION TRUST,7519954,"4,608.36",,
Department of Health,NHS Barnsley CCG,30/04/2015,Hcare Srv Rec Fdtn Trust-CQUIN,MENTAL HEALTH SERVICES - ADULTS,SOUTH WEST YORKSHIRE PARTNERSHIP NHS FOUNDATION TRUST,7519954,"56,071.45",,
Department of Health,NHS Barnsley CCG,30/04/2015,Hcare Srv Rec Fdtn Trust-CQUIN,MENTAL HEALTH SERVICES - OLDER PEOPLE,SOUTH WEST YORKSHIRE PARTNERSHIP NHS FOUNDATION TRUST,7519954,"14,667.17",,
Department of Health,NHS Barnsley CCG,30/04/2015,Hcare Srv Rec Fdtn Trust-CQUIN,MENTAL HEALTH SERVICES - OLDER PEOPLE,SOUTH WEST YORKSHIRE PARTNERSHIP NHS FOUNDATION TRUST,7519956,"34,103.30",,
Department of Health,NHS Barnsley CCG,30/04/2015,Hcare Srv Rec Fdtn Trust-CQUIN,MENTAL HEALTH SERVICES - ADULTS,SOUTH WEST YORKSHIRE PARTNERSHIP NHS FOUNDATION TRUST,7519956,"130,374.28",,
Department of Health,NHS Barnsley CCG,30/04/2015,Hcare Srv Rec Fdtn Trust-CQUIN,LEARNING DIFFICULTIES,SOUTH WEST YORKSHIRE PARTNERSHIP NHS FOUNDATION TRUST,7519956,"10,715.12",,
Department of Health,NHS Barnsley CCG,30/04/2015,Hcare Srv Rec Fdtn Trust-CQUIN,COMMUNITY SERVICES,SOUTH WEST YORKSHIRE PARTNERSHIP NHS FOUNDATION TRUST,7519956,"153,387.85",,
Department of Health,NHS Barnsley CCG,30/04/2015,Hcare Srv Rec Fdtn Trust-Contract Baseline,COMMUNITY SERVICES,SOUTH WEST YORKSHIRE PARTNERSHIP NHS FOUNDATION TRUST,7519958,"89,912.00",,
Department of Health,NHS Barnsley CCG,30/04/2015,Hcare Srv Rec Fdtn Trust-Non Contract,Mental Health Services - Winter Resilience,SOUTH WEST YORKSHIRE PARTNERSHIP NHS FOUNDATION TRUST,7575930,"129,242.00",,
Department of Health,NHS Barnsley CCG,30/04/2015,Hcare Srv Rec Fdtn Trust-Contract Baseline,MENTAL HEALTH SERVICES - OLDER PEOPLE,SOUTH WEST YORKSHIRE PARTNERSHIP NHS FOUNDATION TRUST,7575930,"559,392.00",,
Department of Health,NHS Barnsley CCG,30/04/2015,Hcare Srv Rec Fdtn Trust-CQUIN,MENTAL HEALTH SERVICES - OLDER PEOPLE,SOUTH WEST YORKSHIRE PARTNERSHIP NHS FOUNDATION TRUST,7575930,"6,992.00",,
Department of Health,NHS Barnsley CCG,30/04/2015,Hcare Srv Rec Fdtn Trust-Contract Baseline,MENTAL HEALTH SERVICES - ADULTS,SOUTH WEST YORKSHIRE PARTNERSHIP NHS FOUNDATION TRUST,7575930,"2,138,510.00",,
Department of Health,NHS Barnsley CCG,30/04/2015,Hcare Srv Rec Fdtn Trust-CQUIN,MENTAL HEALTH SERVICES - ADULTS,SOUTH WEST YORKSHIRE PARTNERSHIP NHS FOUNDATION TRUST,7575930,"26,731.00",,
Department of Health,NHS Barnsley CCG,30/04/2015,Hcare Srv Rec Fdtn Trust-Contract Baseline,LEARNING DIFFICULTIES,SOUTH WEST YORKSHIRE PARTNERSHIP NHS FOUNDATION TRUST,7575930,"178,676.00",,
Department of Health,NHS Barnsley CCG,30/04/2015,Hcare Srv Rec Fdtn Trust-CQUIN,LEARNING DIFFICULTIES,SOUTH WEST YORKSHIRE PARTNERSHIP NHS FOUNDATION TRUST,7575930,"2,197.00",,
Department of Health,NHS Barnsley CCG,30/04/2015,Hcare Srv Rec Fdtn Trust-Contract Baseline,DEMENTIA,SOUTH WEST YORKSHIRE PARTNERSHIP NHS FOUNDATION TRUST,7575930,"16,821.00",,
Department of Health,NHS Barnsley CCG,30/04/2015,Hcare Srv Rec Fdtn Trust-Contract Baseline,COMMUNITY SERVICES,SOUTH WEST YORKSHIRE PARTNERSHIP NHS FOUNDATION TRUST,7575930,"2,548,806.00",,
Department of Health,NHS Barnsley CCG,30/04/2015,Hcare Srv Rec Fdtn Trust-CQUIN,COMMUNITY SERVICES,SOUTH WEST YORKSHIRE PARTNERSHIP NHS FOUNDATION TRUST,7575930,"31,451.00",,
Department of Health,NHS Barnsley CCG,30/04/2015,Contract & Agency-Agency Nursing,COMMISSIONING - NON ACUTE,SOUTH WEST YORKSHIRE PARTNERSHIP NHS FOUNDATION TRUST,7575930,"14,000.00",,
Department of Health,NHS Barnsley CCG,30/04/2015,Clinical&Medical-Drugs,PRESCRIBING,SOUTH WEST YORKSHIRE PARTNERSHIP NHS FOUNDATION TRUST,7733388,"48,769.84",,
Department of Health,NHS Barnsley CCG,30/04/2015,Cont Care-Learning Disab(<65),CHC ADULT FULLY FUNDED,SUN HEALTHCARE LTD,7657874,"35,347.52",,
Department of Health,NHS Barnsley CCG,30/04/2015,Hcare Srv Rec NHS Trust-Contract Baseline,AMBULANCE SERVICES,YORKSHIRE AMBULANCE SERVICE NHS TRUST,7576028,"559,458.87",,
Department of Health,NHS Barnsley CCG,30/04/2015,Hcare Srv Rec NHS Trust-Contract Baseline,NHS 111,YORKSHIRE AMBULANCE SERVICE NHS TRUST,7576038,"38,121.00",,
Department of Health,NHS Barnsley CCG,30/04/2015,Hcare Srv Rec NHS Trust-Contract Baseline,PATIENT TRANSPORT,YORKSHIRE AMBULANCE SERVICE NHS TRUST,7576053,"107,152.25",,
